fUSD/lending_fUSD_20260405
["ID","MTS","AMOUNT","RATE_DAILY","PERIOD"]
[419746258,1775352645709,-500.0,0.00014985,2]
[419746259,1775352645718,-500.0,0.00014985,2]
[419746260,1775352645727,-325.59829244,0.00014986,2]
[419746261,1775352645737,-564.47,0.00014986,2]
[419746262,1775352645747,-150.0,0.00014987,2]
[419746263,1775352645757,-150.0,0.00014989,2]
[419746264,1775352645767,-385.69863661,0.0001499,2]
[419746265,1775352645776,-150.0,0.00014993,2]
[419746266,1775352645786,-564.47,0.00014999,2]
[419746267,1775352645795,-500.0,0.00014999,2]
[419746268,1775352645806,-608.7,0.00014999,2]
[419746269,1775352645816,-150.0,0.00015,2]
[419746270,1775352645826,-8599.15138026,0.0001501,2]
[419746271,1775352645835,-5000.0,0.0001501,2]
[419746272,1775352645844,-5000.0,0.0001501,2]
[419746273,1775352645854,-5000.0,0.0001501,2]
[419746274,1775352645864,-5000.0,0.0001501,2]
[419746275,1775352645873,-2505.18082202,0.00015012,2]
[419746276,1775352645883,-150.0,0.00015022,2]
[419746277,1775352645893,-500.0,0.00015024,2]
[419746278,1775352645902,-161.88455627,0.00015024,2]
[419746279,1775352645912,-500.0,0.00015024,2]
[419746280,1775352645921,-500.0,0.00015024,2]
[419746281,1775352645931,-500.0,0.00015024,2]
[419746282,1775352645941,-500.0,0.00015024,2]
[419746283,1775352645951,-500.0,0.00015024,2]
[419746284,1775352645961,-500.0,0.00015024,2]
[419746285,1775352645970,-500.0,0.00015024,2]
[419746286,1775352645980,-150.0,0.00015029,2]
[419746287,1775352645989,-150.0,0.0001503,2]
[419746288,1775352645999,-150.0,0.00015032,2]
[419746289,1775352646009,-150.0,0.0001504,2]
[419746290,1775352646019,-150.0,0.0001504,2]
[419746291,1775352646028,-150.0,0.0001504,2]
[419746292,1775352646038,-150.0,0.0001504,2]
[419746293,1775352646047,-343.18949184,0.00015041,2]
[419746294,1775352646057,-150.0,0.00015052,2]
[419746295,1775352646067,-443.08,0.00015055,2]
[419746296,1775352646078,-159.85690185,0.00015055,2]
[419746297,1775352646088,-150.0,0.00015057,2]
[419746298,1775352646098,-5842.0,0.00015068,2]
[419746299,1775352646107,-800.0,0.00015068,2]
[419746300,1775352646117,-150.0,0.00015074,2]
[419746301,1775352646126,-169.40828216,0.00015074,2]
[419746302,1775352646136,-272.11311006,0.00015074,2]
[419746303,1775352646145,-150.0,0.00015079,2]
[419746304,1775352646155,-443.08,0.00015081,2]
[419746305,1775352646165,-150.0,0.00015081,2]
[419746306,1775352646175,-150.0,0.00015086,2]
[419746307,1775352646186,-150.0,0.00015093,2]
[419746308,1775352646195,-500.0,0.000151,2]
[419746309,1775352646205,-3292.0,0.000151,2]
[419746310,1775352646215,-150.0,0.00015104,2]
[419746311,1775352646224,-443.08,0.00015107,2]
[419746312,1775352646233,-1344.44742338,0.00015108,2]
[419746313,1775352646243,-150.0,0.00015111,2]
[419746314,1775352646252,-150.0,0.00015114,2]
[419746315,1775352646261,-150.0,0.00015116,2]
[419746316,1775352646271,-36884.43135423,0.00015116,2]
[419746317,1775352646281,-150.0,0.0001512,2]
[419746318,1775352646290,-150.0,0.00015127,2]
[419746319,1775352646301,-150.0,0.00015127,2]
[419746320,1775352646311,-241.82,0.00015133,2]
[419746321,1775352646321,-150.0,0.00015141,2]
[419746322,1775352646331,-150.0,0.00015143,2]
[419746323,1775352646340,-150.0,0.00015147,2]
[419746324,1775352646350,-150.0,0.00015158,2]
[419746325,1775352646360,-260.5454256,0.00015166,2]
[419746326,1775352646370,-150.0,0.00015168,2]
[419746327,1775352646380,-150.0,0.0001517,2]
[419746334,1775352646593,-150.0,0.00015171,2]
[419746335,1775352646603,-500.0,0.00015173,2]
[419746336,1775352646612,-500.0,0.00015173,2]
[419746337,1775352646621,-160.32097189,0.00015173,2]
[419746338,1775352646629,-500.0,0.00015173,2]
[419746339,1775352646638,-500.0,0.00015173,2]
[419746340,1775352646647,-500.0,0.00015173,2]
[419746341,1775352646656,-150.0,0.00015176,2]
[419746342,1775352646665,-500.0,0.00015198,2]
[419746343,1775352646674,-753.88,0.00015198,2]
[419746344,1775352646684,-578.20924308,0.00015199,2]
[419746345,1775352646693,-200.0,0.00015199,2]
[419746346,1775352646702,-1428.38747117,0.00015199,2]
[419746347,1775352646711,-209.40437684,0.00015199,2]
[419746348,1775352646720,-812.25117828,0.00015199,2]
[419746349,1775352646729,-500.0,0.00015199,2]
[419746350,1775352646737,-500.0,0.00015199,2]
[419746351,1775352646747,-500.0,0.00015199,2]
[419746352,1775352646757,-500.0,0.00015199,2]
[419746353,1775352646766,-500.0,0.00015199,2]
[419746354,1775352646775,-500.0,0.00015199,2]
[419746355,1775352646784,-500.0,0.00015199,2]
[419746356,1775352646793,-151.0,0.00015199,2]
[419746357,1775352646802,-500.0,0.00015199,2]
[419746358,1775352646811,-151.0,0.00015199,2]
[419746359,1775352646820,-500.0,0.00015199,2]
[419746360,1775352646830,-151.0,0.00015199,2]
[419746361,1775352646839,-500.0,0.00015199,2]
[419746362,1775352646848,-151.0,0.00015199,2]
[419746363,1775352646858,-500.0,0.00015199,2]
[419746364,1775352646867,-500.0,0.00015199,2]
[419746365,1775352646877,-250.0,0.00015199,2]
[419746366,1775352646886,-250.0,0.00015199,2]
[419746367,1775352646895,-250.0,0.00015199,2]
[419746368,1775352646904,-209.40437684,0.00015199,2]
[419746369,1775352646914,-250.0,0.00015199,2]
[419746370,1775352646923,-250.0,0.00015199,2]
[419746371,1775352646933,-250.0,0.00015199,2]
[419746372,1775352646942,-250.0,0.00015199,2]
[419746373,1775352646951,-250.0,0.00015199,2]
[419746374,1775352646961,-250.0,0.00015199,2]
[419746375,1775352646970,-250.0,0.00015199,2]
[419746376,1775352646979,-250.0,0.00015199,2]
[419746377,1775352646990,-500.0,0.00015199,2]
[419746378,1775352646999,-500.0,0.00015199,2]
[419746379,1775352647008,-500.0,0.00015199,2]
[419746380,1775352647017,-200.0,0.00015199,2]
[419746381,1775352647026,-500.0,0.00015199,2]
[419746382,1775352647035,-500.0,0.00015199,2]
[419746383,1775352647044,-500.0,0.00015199,2]
[419746384,1775352647053,-500.0,0.00015199,2]
[419746385,1775352647062,-174.61919141,0.00015199,2]
[419746386,1775352647072,-151.0,0.00015199,2]
[419746387,1775352647081,-500.0,0.00015199,2]
[419746388,1775352647090,-500.0,0.00015199,2]
[419746389,1775352647100,-743.50770149,0.00015199,2]
[419746390,1775352647110,-500.0,0.00015199,2]
[419746391,1775352647120,-500.0,0.00015199,2]
[419746392,1775352647129,-279.9045709,0.00015199,2]
[419746393,1775352647139,-156.959134,0.00015199,2]
[419746394,1775352647148,-170.0,0.00015199,2]
[419746395,1775352647158,-170.0,0.00015199,2]
[419746396,1775352647167,-170.0,0.00015199,2]
[419746397,1775352647177,-170.0,0.00015199,2]
[419746398,1775352647186,-500.0,0.00015199,2]
[419746399,1775352647195,-170.0,0.00015199,2]
[419746400,1775352647205,-500.0,0.00015199,2]
[419746401,1775352647215,-170.0,0.00015199,2]
[419746402,1775352647224,-500.0,0.00015199,2]
[419746403,1775352647233,-170.0,0.00015199,2]
[419746404,1775352647242,-500.0,0.00015199,2]
[419746405,1775352647252,-170.0,0.00015199,2]
[419746406,1775352647261,-500.0,0.00015199,2]
[419746407,1775352647271,-170.0,0.00015199,2]
[419746408,1775352647281,-170.0,0.00015199,2]
[419746409,1775352647290,-170.0,0.00015199,2]
[419746410,1775352647300,-150.0,0.000152,2]
[419746411,1775352647309,-150.0,0.000152,2]
[419746412,1775352647319,-150.0,0.000152,2]
[419746413,1775352647328,-150.0,0.000152,2]
[419746414,1775352647338,-150.0,0.000152,2]
[419746415,1775352647348,-150.0,0.000152,2]
[419746416,1775352647358,-608.7,0.00015201,2]
[419746417,1775352647368,-10000.0,0.00015205,2]
[419746418,1775352647378,-881.58,0.00015206,2]
[419746419,1775352647388,-1482.54,0.00015206,2]
[419746420,1775352647397,-564.47,0.00015214,2]
[419746421,1775352647406,-150.0,0.00015224,2]
[419746422,1775352647416,-150.0,0.00015229,2]
[419746423,1775352647425,-150.0,0.0001523,2]
[419746424,1775352647434,-150.0,0.00015232,2]
[419746425,1775352647443,-150.0,0.00015242,2]
[419746426,1775352647454,-150.0,0.00015253,2]
[419746427,1775352647463,-500.0,0.00015254,2]
[419746428,1775352647472,-151.0,0.00015254,2]
[419746429,1775352647482,-150.0,0.00015257,2]
[419746430,1775352647491,-150.0,0.00015259,2]
[419746431,1775352647500,-229.53864516,0.00015261,2]
[419746432,1775352647509,-150.0,0.00015273,2]
[419746433,1775352647519,-150.0,0.00015273,2]
[419746434,1775352647528,-150.0,0.0001528,2]
[419746435,1775352647537,-374.24,0.00015283,2]
[419746436,1775352647546,-150.0,0.00015284,2]
[419746437,1775352647555,-150.0,0.00015286,2]
[419746438,1775352647564,-150.0,0.00015289,2]
[419746439,1775352647574,-150.0,0.00015296,2]
[419746440,1775352647583,-150.0,0.00015307,2]
[419746441,1775352647593,-500.0,0.00015309,2]
[419746442,1775352647602,-151.0,0.00015309,2]
[419746443,1775352647611,-500.0,0.00015312,2]
[419746444,1775352647621,-2511.5547996,0.00015312,2]
[419746445,1775352647630,-150.0,0.00015314,2]
[419746446,1775352647640,-350.0,0.00015318,2]
[419746447,1775352647650,-150.0,0.00015319,2]
[419746448,1775352647660,-247.13896061,0.00015321,2]
[419746449,1775352647669,-150.0,0.00015321,2]
[419746450,1775352647678,-150.0,0.00015326,2]
[419746451,1775352647687,-1312.53113811,0.00015342,2]
[419746452,1775352647696,-2000.0,0.00015342,2]
[419746453,1775352647705,-642.58837708,0.00015342,2]
[419746454,1775352647715,-2000.0,0.00015342,2]
[419746455,1775352647724,-2000.0,0.00015342,2]
[419746456,1775352647733,-2000.0,0.00015342,2]
[419746457,1775352647742,-2000.0,0.00015342,2]
[419746458,1775352647751,-2000.0,0.00015342,2]
[419746459,1775352647761,-2000.0,0.00015342,2]
[419746460,1775352647770,-150.0,0.00015343,2]
[419746461,1775352647780,-510.88801046,0.00015345,2]
[419746462,1775352647789,-150.0,0.00015348,2]
[419746463,1775352647798,-736.0,0.00015354,2]
[419746464,1775352647807,-985.45787552,0.00015358,2]
[419746465,1775352647817,-150.0,0.0001536,2]
[419746466,1775352647826,-150.0,0.0001536,2]
[419746467,1775352647836,-150.0,0.0001536,2]
[419746468,1775352647845,-150.0,0.0001536,2]
[419746469,1775352647855,-350.0,0.00015364,2]
[419746470,1775352647864,-500.0,0.00015364,2]
[419746471,1775352647873,-151.0,0.00015364,2]
[419746472,1775352647882,-150.0,0.00015368,2]
[419746473,1775352647891,-150.0,0.0001537,2]
[419746474,1775352647901,-150.0,0.00015371,2]
[419746475,1775352647910,-312.03899626,0.00015372,2]
[419746476,1775352647919,-150.0,0.00015378,2]
[419746477,1775352647929,-494.91540152,0.00015391,2]
[419746478,1775352647938,-542.00323787,0.00015391,2]
[419746479,1775352647947,-6971.76991075,0.00015396,2]
[419746480,1775352647956,-150.0,0.000154,2]
[419746481,1775352647965,-150.0,0.00015407,2]
[419746482,1775352647974,-150.0,0.00015411,2]
[419746483,1775352647983,-150.0,0.00015413,2]
[419746484,1775352647992,-2000.0,0.00015415,2]
[419746485,1775352648002,-150.0,0.00015418,2]
[419746486,1775352648011,-150.0,0.00015418,2]
[419746487,1775352648021,-500.0,0.00015419,2]
[419746488,1775352648030,-151.0,0.00015419,2]
[419746489,1775352648039,-150.0,0.00015424,2]
[419746490,1775352648048,-150.0,0.00015429,2]
[419746491,1775352648058,-2085.8671148,0.0001543,2]
[419746492,1775352648067,-1346.12622015,0.0001543,2]
[419746493,1775352648076,-2000.0,0.0001543,2]
[419746494,1775352648086,-2000.0,0.0001543,2]
[419746495,1775352648095,-2000.0,0.0001543,2]
[419746496,1775352648104,-2000.0,0.0001543,2]
[419746497,1775352648114,-150.0,0.00015437,2]
[419746498,1775352648124,-150.0,0.0001544,2]
[419746499,1775352648133,-500.0,0.00015442,2]
[419746500,1775352648143,-150.0,0.00015453,2]
[419746501,1775352648152,-150.0,0.00015457,2]
[419746502,1775352648162,-150.0,0.00015467,2]
[419746503,1775352648171,-150.0,0.00015467,2]
[419746504,1775352648180,-150.0,0.00015467,2]
[419746505,1775352648189,-150.0,0.00015467,2]
[419746506,1775352648198,-529.28576111,0.00015473,2]
[419746507,1775352648208,-500.0,0.00015473,2]
[419746508,1775352648217,-551.03,0.00015473,2]
[419746509,1775352648227,-734.01,0.00015473,2]
[419746510,1775352648237,-500.0,0.00015473,2]
[419746511,1775352648246,-500.0,0.00015473,2]
[419746512,1775352648255,-500.0,0.00015473,2]
[419746513,1775352648264,-500.0,0.00015473,2]
[419746514,1775352648273,-500.0,0.00015473,2]
[419746515,1775352648283,-500.0,0.00015473,2]
[419746516,1775352648292,-500.0,0.00015473,2]
[419746517,1775352648300,-8421.77458651,0.00015473,2]
[419746518,1775352648309,-849.0631542,0.00015473,2]
[419746519,1775352648318,-500.0,0.00015474,2]
[419746520,1775352648328,-151.0,0.00015474,2]
[419746521,1775352648338,-881.58,0.0001548,2]
[419746522,1775352648347,-1482.632399,0.0001548,2]
[419746523,1775352648357,-150.0,0.00015486,2]
[419746524,1775352648366,-150.0,0.00015488,2]
[419746525,1775352648376,-150.0,0.00015495,2]
[419746526,1775352648386,-150.0,0.00015496,2]
[419746527,1775352648396,-36884.43135423,0.00015508,2]
[419746528,1775352648407,-150.0,0.00015514,2]
[419746529,1775352648416,-150.0,0.00015515,2]
[419746530,1775352648425,-4143.0,0.00015519,2]
[419746531,1775352648434,-150.0,0.0001552,2]
[419746532,1775352648443,-150.0,0.0001552,2]
[419746533,1775352648452,-150.0,0.0001552,2]
[419746534,1775352648463,-150.0,0.00015526,2]
[419746535,1775352648472,-500.0,0.00015529,2]
[419746536,1775352648481,-151.0,0.00015529,2]
[419746537,1775352648490,-165.64274187,0.00015533,2]
[419746538,1775352648499,-1000.0,0.00015533,2]
[419746539,1775352648508,-500.0,0.00015533,2]
[419746540,1775352648517,-1000.0,0.00015533,2]
[419746541,1775352648526,-1000.0,0.00015533,2]
[419746542,1775352648535,-1000.0,0.00015533,2]
[419746543,1775352648544,-150.0,0.00015537,2]
[419746544,1775352648554,-150.0,0.00015543,2]
[419746545,1775352648563,-150.0,0.00015552,2]
[419746546,1775352648572,-150.0,0.00015556,2]
[419746547,1775352648581,-564.47,0.00015556,2]
[419746548,1775352648591,-150.0,0.00015564,2]
[419746549,1775352648600,-150.0,0.00015564,2]
[419746550,1775352648609,-350.0,0.00015564,2]
[419746551,1775352648619,-608.7,0.00015565,2]
[419746552,1775352648628,-608.7,0.00015565,2]
[419746553,1775352648637,-608.7,0.00015565,2]
[419746554,1775352648647,-608.7,0.00015565,2]
[419746555,1775352648656,-608.71615524,0.00015565,2]
[419746556,1775352648666,-150.0,0.00015571,2]
[419746557,1775352648675,-307.87812232,0.00015572,2]
[419746558,1775352648685,-1000.0,0.00015572,2]
[419746559,1775352648695,-627.55050466,0.00015572,2]
[419746560,1775352648704,-1000.0,0.00015572,2]
[419746561,1775352648714,-1000.0,0.00015572,2]
[419746562,1775352648723,-1000.0,0.00015572,2]
[419746563,1775352648733,-1000.0,0.00015572,2]
[419746564,1775352648742,-1000.0,0.00015572,2]
[419746565,1775352648752,-150.0,0.00015573,2]
[419746566,1775352648762,-150.0,0.00015579,2]
[419746567,1775352648771,-500.0,0.00015584,2]
[419746568,1775352648781,-151.0,0.00015584,2]
[419746569,1775352648790,-150.0,0.00015585,2]
[419746570,1775352648799,-150.0,0.000156,2]
[419746571,1775352648808,-150.0,0.000156,2]
[419746572,1775352648817,-150.0,0.00015612,2]
[419746573,1775352648827,-150.0,0.00015615,2]
[419746574,1775352648836,-150.0,0.00015616,2]
[419746575,1775352648846,-150.0,0.00015621,2]
[419746576,1775352648855,-150.0,0.00015627,2]
[419746577,1775352648865,-150.0,0.00015629,2]
[419746578,1775352648874,-500.0,0.00015639,2]
[419746579,1775352648884,-151.0,0.00015639,2]
[419746580,1775352648893,-150.0,0.00015644,2]
[419746581,1775352648903,-150.0,0.00015657,2]
[419746582,1775352648912,-150.0,0.00015661,2]
[419746583,1775352648921,-150.0,0.00015663,2]
[419746584,1775352648930,-1047.53712765,0.00015668,2]
[419746585,1775352648940,-228.10410188,0.00015668,2]
[419746586,1775352648949,-273.90670593,0.00015668,2]
[419746587,1775352648959,-241.82,0.00015672,2]
[419746588,1775352648968,-150.0,0.00015674,2]
[419746589,1775352648977,-264.73927606,0.00015676,2]
[419746590,1775352648987,-150.0,0.0001568,2]
[419746591,1775352648996,-150.0,0.0001568,2]
[419746592,1775352649006,-150.0,0.0001568,2]
[419746593,1775352649015,-150.0,0.0001568,2]
[419746594,1775352649025,-5888.0,0.0001568,2]
[419746595,1775352649034,-522.18859438,0.00015684,2]
[419746596,1775352649043,-150.0,0.00015686,2]
[419746597,1775352649053,-468.6868476,0.00015693,2]
[419746598,1775352649062,-500.0,0.00015694,2]
[419746599,1775352649072,-151.0,0.00015694,2]
[419746600,1775352649081,-5888.0,0.00015694,2]
[419746601,1775352649091,-3100.0,0.000157,5]
[419746602,1775352649100,-200.0,0.000157,5]
[419746603,1775352649110,-150.0,0.00015704,2]
[419746604,1775352649119,-150.0,0.00015705,2]
[419746605,1775352649128,-150.0,0.00015709,2]
[419746606,1775352649138,-150.0,0.00015709,2]
[419746607,1775352649148,-150.0,0.00015714,2]
[419746608,1775352649157,-179.88810858,0.00015721,2]
[419746609,1775352649167,-1000.0,0.00015721,2]
[419746610,1775352649176,-1000.0,0.00015721,2]
[419746611,1775352649185,-1000.0,0.00015721,2]
[419746612,1775352649195,-150.0,0.00015733,2]
[419746613,1775352649204,-150.0,0.00015733,2]
[419746614,1775352649214,-150.0,0.00015743,2]
[419746615,1775352649223,-150.0,0.00015744,2]
[419746616,1775352649233,-200.0,0.00015747,2]
[419746617,1775352649242,-1481.23780761,0.00015747,2]
[419746618,1775352649251,-217.15233878,0.00015747,2]
[419746619,1775352649260,-335.88063658,0.00015747,2]
[419746620,1775352649270,-200.0,0.00015747,2]
[419746621,1775352649279,-181.08010149,0.00015747,2]
[419746622,1775352649289,-771.01748645,0.00015747,2]
[419746623,1775352649298,-290.26104003,0.00015747,2]
[419746624,1775352649307,-150.0,0.00015747,2]
[419746625,1775352649316,-500.0,0.00015749,2]
[419746626,1775352649327,-151.0,0.00015749,2]
[419746627,1775352649336,-366.0,0.00015753,2]
[419746628,1775352649346,-5842.0,0.00015753,2]
[419746629,1775352649355,-881.58,0.00015754,2]
[419746630,1775352649364,-150.0,0.00015758,2]
[419746631,1775352649374,-150.0,0.0001576,2]
[419746632,1775352649383,-150.0,0.00015763,2]
[419746633,1775352649392,-150.0,0.00015771,2]
[419746634,1775352649402,-151.3,0.00015779,2]
[419746635,1775352649411,-151.3,0.00015779,2]
[419746636,1775352649420,-151.3,0.00015779,2]
[419746637,1775352649429,-151.3,0.00015779,2]
[419746638,1775352649439,-150.0,0.00015787,2]
[419746639,1775352649448,-150.0,0.00015789,2]
[419746640,1775352649458,-1344.44742338,0.00015791,2]
[419746641,1775352649467,-150.0,0.00015793,2]
[419746642,1775352649476,-564.47,0.00015799,2]
[419746643,1775352649486,-564.47,0.00015799,2]
[419746644,1775352649495,-564.47,0.00015799,2]
[419746645,1775352649505,-564.47,0.00015799,2]
[419746646,1775352649516,-564.47,0.00015799,2]
[419746647,1775352649527,-564.47,0.00015799,2]
[419746648,1775352649536,-564.47,0.00015799,2]
[419746649,1775352649545,-564.57,0.00015799,2]
[419746650,1775352649556,-500.0,0.00015799,2]
[419746651,1775352649566,-500.0,0.00015799,2]
[419746652,1775352649576,-500.0,0.00015799,2]
[419746653,1775352649585,-296.79376567,0.00015799,2]
[419746654,1775352649594,-368.52,0.00015799,2]
[419746655,1775352649603,-434.0,0.000158,2]
[419746656,1775352649612,-150.0,0.000158,2]
[419746657,1775352649622,-3100.0,0.000158,5]
[419746658,1775352649633,-200.0,0.000158,5]
[419746659,1775352649643,-2000.0,0.00015801,2]
[419746660,1775352649653,-150.0,0.00015806,2]
[419746661,1775352649662,-150.0,0.00015808,2]
[419746662,1775352649671,-150.0,0.00015822,2]
[419746663,1775352649681,-150.0,0.00015829,2]
[419746664,1775352649690,-150.0,0.00015832,2]
[419746665,1775352649699,-500.0,0.00015839,2]
[419746666,1775352649708,-551.03,0.00015839,2]
[419746667,1775352649718,-734.01,0.00015839,2]
[419746668,1775352649727,-500.0,0.00015839,2]
[419746669,1775352649736,-500.0,0.00015839,2]
[419746670,1775352649745,-753.88,0.00015839,2]
[419746671,1775352649957,-325.34166394,0.00015839,2]
[419746672,1775352649967,-500.0,0.00015839,2]
[419746673,1775352649977,-500.0,0.00015839,2]
[419746674,1775352649986,-500.0,0.00015839,2]
[419746675,1775352649995,-500.0,0.00015839,2]
[419746676,1775352650004,-566.15300548,0.00015839,2]
[419746677,1775352650014,-500.0,0.00015839,2]
[419746678,1775352650023,-97633.00583932,0.0001584,2]
[419746679,1775352650033,-150.0,0.0001584,2]
[419746680,1775352650042,-150.0,0.0001584,2]
[419746681,1775352650051,-150.0,0.0001584,2]
[419746682,1775352650060,-150.0,0.00015852,2]
[419746683,1775352650070,-434.0,0.00015854,2]
[419746684,1775352650079,-150.0,0.00015855,2]
[419746685,1775352650088,-150.0,0.00015855,2]
[419746686,1775352650097,-150.0,0.00015857,2]
[419746687,1775352650107,-500.0,0.00015871,2]
[419746688,1775352650116,-200.0,0.00015871,2]
[419746689,1775352650125,-500.0,0.00015872,2]
[419746690,1775352650135,-500.0,0.00015872,2]
[419746691,1775352650144,-500.0,0.00015872,2]
[419746692,1775352650154,-500.0,0.00015872,2]
[419746693,1775352650163,-200.0,0.00015872,2]
[419746694,1775352650172,-200.0,0.00015872,2]
[419746695,1775352650182,-150.0,0.00015872,2]
[419746696,1775352650192,-150.0,0.00015874,2]
[419746697,1775352650201,-150.0,0.00015881,2]
[419746698,1775352650210,-150.0,0.00015886,2]
[419746699,1775352650220,-500.0,0.0001589,2]
[419746700,1775352650230,-500.0,0.0001589,2]
[419746701,1775352650239,-500.0,0.0001589,2]
[419746702,1775352650249,-500.0,0.0001589,2]
[419746703,1775352650258,-500.0,0.0001589,2]
[419746704,1775352650268,-500.0,0.0001589,2]
[419746705,1775352650279,-500.0,0.0001589,2]
[419746706,1775352650288,-500.0,0.0001589,2]
[419746707,1775352650297,-500.0,0.0001589,2]
[419746708,1775352650307,-500.0,0.0001589,2]
[419746709,1775352650316,-500.0,0.0001589,2]
[419746710,1775352650325,-500.0,0.0001589,2]
[419746711,1775352650335,-500.0,0.0001589,2]
[419746712,1775352650345,-2500.0,0.0001589,2]
[419746713,1775352650354,-704.40114749,0.0001589,2]
[419746714,1775352650364,-2500.0,0.0001589,2]
[419746715,1775352650373,-2500.0,0.0001589,2]
[419746716,1775352650383,-2500.0,0.0001589,2]
[419746717,1775352650392,-2500.0,0.0001589,2]
[419746718,1775352650402,-2500.0,0.0001589,2]
[419746719,1775352650411,-1000.0,0.00015891,2]
[419746720,1775352650421,-1000.0,0.00015891,2]
[419746721,1775352650430,-1000.0,0.00015891,2]
[419746722,1775352650439,-150.0,0.00015893,2]
[419746723,1775352650448,-419.0,0.00015897,2]
[419746724,1775352650457,-23084.56085335,0.000159,2]
[419746725,1775352650467,-176.92215124,0.000159,2]
[419746726,1775352650476,-150.0,0.000159,2]
[419746727,1775352650485,-150.0,0.000159,2]
[419746728,1775352650494,-150.0,0.000159,2]
[419746729,1775352650503,-150.0,0.000159,2]
[419746730,1775352650512,-150.0,0.000159,2]
[419746731,1775352650521,-36884.43135423,0.000159,2]
[419746732,1775352650530,-150.0,0.000159,2]
[419746733,1775352650539,-3100.0,0.000159,5]
[419746734,1775352650548,-683.54943337,0.000159,2]
[419746735,1775352650557,-150.0,0.000159,2]
[419746736,1775352650567,-6971.76991075,0.000159,2]
[419746737,1775352650575,-28181.7965413,0.000159,2]
[419746738,1775352650585,-200.0,0.000159,5]
[419746739,1775352650595,-209.03450292,0.000159,2]
[419746740,1775352650606,-1957.0,0.000159,5]
[419746741,1775352650615,-1566.0,0.000159,5]
[419746742,1775352650624,-2000.0,0.00015901,2]
[419746743,1775352650634,-150.0,0.00015903,2]
[419746744,1775352650643,-150.0,0.00015911,2]
[419746745,1775352650653,-150.0,0.00015914,2]
[419746746,1775352650662,-150.0,0.00015916,2]
[419746747,1775352650671,-150.0,0.0001592,2]
[419746748,1775352650681,-150.0,0.00015936,2]
[419746749,1775352650690,-150.0,0.00015941,2]
[419746750,1775352650700,-150.0,0.00015943,2]
[419746751,1775352650709,-150.0,0.00015947,2]
[419746752,1775352650718,-150.0,0.00015952,2]
[419746753,1775352650728,-150.0,0.00015958,2]
[419746754,1775352650739,-3835.20744626,0.0001596,2]
[419746755,1775352650749,-473.12015753,0.00015963,2]
[419746756,1775352650758,-552.0,0.00015966,2]
[419746757,1775352650771,-150.0,0.0001597,2]
[419746758,1775352650780,-150.0,0.00015971,2]
[419746759,1775352650790,-350.0,0.00015977,2]
[419746760,1775352650801,-1774.57240922,0.00015977,2]
[419746761,1775352650811,-1279.85479415,0.00015977,2]
[419746762,1775352650821,-2000.0,0.00015977,2]
[419746763,1775352650831,-2500.0,0.00015977,2]